fUST/lending_fUST_20241110
["ID","MTS","AMOUNT","RATE_DAILY","PERIOD"]
[341836379,1731249044446,-500.0,0.00029499,2]
[341836380,1731249044457,-500.0,0.00029499,2]
[341836381,1731249044468,-500.0,0.00029499,2]
[341836382,1731249044478,-500.0,0.00029499,2]
[341836383,1731249044489,-500.0,0.00029499,2]
[341836384,1731249044498,-500.0,0.00029499,2]
[341836385,1731249044508,-514.62191744,0.00029499,2]
[341836386,1731249044517,-500.0,0.00029499,2]
[341836387,1731249044527,-500.0,0.00029499,2]
[341836388,1731249044537,-500.0,0.00029499,2]
[341836389,1731249044546,-409.68062956,0.00029499,2]
[341836390,1731249044557,-500.0,0.00029499,2]
[341836391,1731249044567,-500.0,0.00029499,2]
[341836392,1731249044576,-500.0,0.00029499,2]
[341836393,1731249044586,-500.0,0.00029499,2]
[341836394,1731249044597,-500.0,0.00029499,2]
[341836395,1731249044607,-500.0,0.00029499,2]
[341836396,1731249044616,-500.0,0.00029499,2]
[341836397,1731249044627,-500.0,0.00029499,2]
[341836398,1731249044637,-500.0,0.00029499,2]
[341836399,1731249044647,-500.0,0.00029499,2]
[341836400,1731249044656,-500.0,0.00029499,2]
[341836401,1731249044666,-500.0,0.00029499,2]
[341836402,1731249044675,-500.0,0.00029499,2]
[341836403,1731249044685,-500.0,0.00029499,2]
[341836404,1731249044694,-500.0,0.00029499,2]
[341836405,1731249044704,-500.0,0.00029499,2]
[341836406,1731249044713,-500.0,0.00029499,2]
[341836407,1731249044723,-500.0,0.00029499,2]
[341836408,1731249044732,-500.0,0.00029499,2]
[341836409,1731249044742,-500.0,0.00029499,2]
[341836410,1731249044752,-500.0,0.00029499,2]
[341836411,1731249044761,-450.0,0.00029499,2]
[341836412,1731249044770,-333.30251721,0.00029499,2]
[341836413,1731249044779,-317.76607315,0.00029499,2]
[341836414,1731249044789,-720.13377636,0.00029499,2]
[341836415,1731249044799,-600.0,0.00029499,2]
[341836416,1731249044810,-451513.19037187,0.000295,5]
[341836428,1731249046104,-3000.2146425,0.000295,5]
[341836442,1731249500478,520.83333333,0.00020844,2]
[341836443,1731249597170,4614.0263897,0.0001,2]
[341836445,1731249705218,161.728952,0.00013973,2]
[341836451,1731249813030,520.83333333,0.00020844,2]
[341836505,1731250126546,520.83333333,0.00020844,2]
[341836561,1731250235517,-520.83333333,0.00024929,2]
[341836563,1731250235526,-155.586,0.0002534,2]
[341836565,1731250235535,-166.666666,0.00025367,2]
[341836567,1731250235545,-300.0,0.00025477,2]
[341836569,1731250235554,-300.0,0.00025477,2]
[341836571,1731250235563,-512.45116408,0.00025478,2]
[341836573,1731250235574,-792.48,0.00025478,2]
[341836575,1731250235586,-965.64054431,0.00025478,2]
[341836578,1731250235597,-545.10711551,0.00025478,2]
[341836816,1731250238358,-22084.3211761,0.00025478,2]
[341836818,1731250238367,-1542.5334255,0.00025516,2]
[341836820,1731250238377,-593.89482197,0.00025742,2]
[341836822,1731250238386,-196.450426,0.0002593,2]
[341836824,1731250238396,-2835.62639965,0.00026798,2]
[341836826,1731250238405,-727.50136722,0.00026888,2]
[341836828,1731250238414,-565.84,0.00026888,3]
[341836830,1731250238423,-9183.48,0.00026888,10]
[341836832,1731250238432,-377.21,0.00026889,3]
[341836834,1731250238442,-188.61,0.00026889,3]
[341836836,1731250238451,-188.20184775,0.00026898,2]
[341836838,1731250238460,-500.0,0.00026898,2]
[341836840,1731250238469,-500.0,0.00026898,2]
[341836842,1731250238478,-250.99455479,0.00026898,2]
[341836844,1731250238489,-500.0,0.00026898,2]
[341836847,1731250238498,-500.0,0.00026898,2]
[341836863,1731250238631,-500.0,0.00026898,2]
[341836865,1731250238641,-500.0,0.00026898,2]
[341836867,1731250238651,-500.0,0.00026898,2]
[341836869,1731250238660,-500.0,0.00026898,2]
[341836871,1731250238669,-500.0,0.00026898,2]
[341836873,1731250238678,-500.0,0.00026898,2]
[341836875,1731250238687,-500.0,0.00026898,2]
[341836877,1731250238696,-500.0,0.00026898,2]
[341836879,1731250238705,-500.0,0.00026898,2]
[341836881,1731250238717,-500.0,0.00026898,2]
[341836883,1731250238728,-500.0,0.00026898,2]
[341836885,1731250238741,-1308.38,0.00026898,2]
[341836887,1731250238750,-500.0,0.00026898,2]
[341836889,1731250238759,-500.0,0.00026898,2]
[341836891,1731250238770,-500.0,0.00026898,2]
[341836893,1731250238779,-338.97697388,0.00026898,2]
[341836895,1731250238789,-578.77229938,0.00026898,2]
[341836897,1731250238800,-501.42365605,0.00026898,2]
[341836899,1731250238809,-818.29,0.00026898,2]
[341836901,1731250238819,-500.0,0.00026898,2]
[341836903,1731250238828,-500.0,0.00026898,2]
[341836905,1731250238838,-500.0,0.00026898,2]
[341836907,1731250238849,-505.45954772,0.00026898,2]
[341836909,1731250238860,-500.0,0.00026898,2]
[341836911,1731250238869,-13516.98,0.00026898,2]
[341836913,1731250238879,-500.0,0.00026898,2]
[341836915,1731250238889,-500.0,0.00026898,2]
[341836917,1731250238901,-500.0,0.00026898,2]
[341836919,1731250238910,-530.32389434,0.00026898,2]
[341836921,1731250238919,-500.0,0.00026898,2]
[341836923,1731250238928,-500.0,0.00026898,2]
[341836925,1731250238937,-500.0,0.00026898,2]
[341836927,1731250238948,-500.0,0.00026898,2]
[341836929,1731250238957,-28298.33,0.00026898,2]
[341836931,1731250238966,-507.01669889,0.00026898,2]
[341836933,1731250238975,-512.34345009,0.00026898,2]
[341836935,1731250238985,-500.0,0.00026898,2]
[341836937,1731250238997,-512.22103537,0.00026898,2]
[341836939,1731250239007,-500.0,0.00026898,2]
[341836941,1731250239016,-984.5,0.00026898,2]
[341836943,1731250239025,-500.0,0.00026898,2]
[341836945,1731250239034,-2173.92,0.00026898,2]
[341836947,1731250239044,-503.70199357,0.00026898,2]
[341836949,1731250239053,-500.0,0.00026898,2]
[341836951,1731250239062,-500.0,0.00026898,2]
[341836953,1731250239072,-2830.29,0.00026898,2]
[341836955,1731250239081,-500.0,0.00026898,2]
[341836957,1731250239091,-549.23,0.00026898,2]
[341836959,1731250239100,-500.0,0.00026898,2]
[341836961,1731250239109,-513.06268591,0.00026898,2]
[341836963,1731250239118,-511.61,0.00026898,2]
[341836965,1731250239128,-500.0,0.00026898,2]
[341836967,1731250239137,-500.0,0.00026898,2]
[341836969,1731250239146,-9773.14,0.00026898,2]
[341836971,1731250239155,-9773.14,0.00026898,2]
[341836973,1731250239165,-500.0,0.00026898,2]
[341836975,1731250239174,-546.51235121,0.00026898,2]
[341836977,1731250239183,-2140.67,0.00026898,2]
[341836979,1731250239193,-2140.67,0.00026898,2]
[341836981,1731250239203,-500.0,0.00026898,2]
[341836983,1731250239212,-500.0,0.00026898,2]
[341836985,1731250239221,-506.21430269,0.00026898,2]
[341836987,1731250239230,-4375.62,0.00026898,2]
[341836989,1731250239244,-504.38287094,0.00026898,2]
[341836991,1731250239254,-500.0,0.00026898,2]
[341836993,1731250239263,-500.0,0.00026898,2]
[341836995,1731250239273,-547.06499435,0.00026898,2]
[341836997,1731250239283,-2406.81,0.00026898,2]
[341836999,1731250239292,-500.0,0.00026898,2]
[341837001,1731250239301,-500.0,0.00026898,2]
[341837003,1731250239310,-500.0,0.00026898,2]
[341837005,1731250239319,-200.0,0.00026898,2]
[341837007,1731250239328,-775.52,0.00026898,2]
[341837009,1731250239338,-500.0,0.00026898,2]
[341837011,1731250239347,-500.0,0.00026898,2]
[341837013,1731250239356,-1830.5,0.00026898,2]
[341837015,1731250239365,-500.0,0.00026898,2]
[341837017,1731250239374,-500.0,0.00026898,2]
[341837019,1731250239384,-527.17445707,0.00026898,2]
[341837021,1731250239393,-500.0,0.00026898,2]
[341837023,1731250239402,-500.0,0.00026898,2]
[341837025,1731250239411,-500.0,0.00026898,2]
[341837027,1731250239420,-456.40542128,0.00026898,2]
[341837029,1731250239430,-500.0,0.00026898,2]
[341837031,1731250239439,-500.0,0.00026898,2]
[341837033,1731250239449,-2203.37,0.00026898,2]
[341837035,1731250239458,-945.73,0.00026898,2]
[341837037,1731250239468,-500.0,0.00026898,2]
[341837039,1731250239477,-500.0,0.00026898,2]
[341837041,1731250239489,-500.0,0.00026899,2]
[341837043,1731250239498,-500.0,0.00026899,2]
[341837045,1731250239507,-500.0,0.00026899,2]
[341837047,1731250239516,-500.0,0.00026899,2]
[341837049,1731250239525,-500.0,0.00026899,2]
[341837051,1731250239534,-500.0,0.00026899,2]
[341837053,1731250239543,-500.0,0.00026899,2]
[341837055,1731250239552,-500.0,0.00026899,2]
[341837057,1731250239562,-500.0,0.00026899,2]
[341837059,1731250239571,-500.0,0.00026899,2]
[341837061,1731250239580,-500.0,0.00026899,2]
[341837063,1731250239589,-411.80809852,0.00026899,2]
[341837065,1731250239598,-500.0,0.00026899,2]
[341837067,1731250239608,-573.9030516,0.00026899,2]
[341837069,1731250239617,-500.0,0.00026899,2]
[341837071,1731250239626,-500.0,0.00026899,2]
[341837073,1731250239636,-500.0,0.00026899,2]
[341837075,1731250239645,-500.0,0.00026899,2]
[341837077,1731250239654,-250.0,0.00026899,2]
[341837079,1731250239663,-500.0,0.00026899,2]
[341837081,1731250239673,-523.88989039,0.00026899,2]
[341837083,1731250239682,-500.0,0.00026899,2]
[341837086,1731250239699,-500.0,0.00026899,2]
[341837088,1731250239708,-500.0,0.00026899,2]
[341837090,1731250239721,-500.0,0.00026899,2]
[341837092,1731250239732,-528.86921381,0.00026899,2]
[341837094,1731250239744,-500.0,0.00026899,2]
[341837096,1731250239753,-500.0,0.00026899,2]
[341837098,1731250239762,-472.09685805,0.00026899,2]
[341837100,1731250239773,-502.90208823,0.00026899,2]
[341837102,1731250239782,-500.0,0.00026899,2]
[341837104,1731250239791,-500.0,0.00026899,2]
[341837106,1731250239802,-508.28131867,0.00026899,2]
[341837108,1731250239811,-500.0,0.00026899,2]
[341837110,1731250239820,-500.0,0.00026899,2]
[341837112,1731250239829,-471.4447411,0.00027029,2]
[341837114,1731250239838,-166.666666,0.00027096,2]
[341837116,1731250239847,-210.72,0.00027152,3]
[341837118,1731250239857,-281.28223099,0.00027162,2]
[341837120,1731250239866,-500.0,0.00027171,2]
[341837122,1731250239875,-500.0,0.00027171,2]
[341837124,1731250239884,-9773.14,0.00027171,2]
[341837126,1731250239895,-9773.14,0.00027171,2]
[341837127,1731250239904,-2140.67,0.00027171,2]
[341837130,1731250239913,-2140.67,0.00027171,2]
[341837132,1731250239922,-500.0,0.00027171,2]
[341837133,1731250239932,-500.0,0.00027171,2]
[341837135,1731250239942,-379.66758359,0.00027171,2]
[341837138,1731250239953,-500.0,0.00027171,2]
[341837140,1731250239962,-500.0,0.00027171,2]
[341837142,1731250239971,-500.0,0.00027171,2]
[341837144,1731250239981,-500.0,0.00027171,2]
[341837146,1731250239992,-500.0,0.00027171,2]
[341837148,1731250240002,-155.7458321,0.00027171,2]
[341837150,1731250240011,-176.44636362,0.00027171,2]
[341837152,1731250240020,-501.40021377,0.00027171,2]
[341837154,1731250240029,-500.0,0.00027171,2]
[341837156,1731250240038,-500.0,0.00027171,2]
[341837158,1731250240047,-525.00408991,0.00027171,2]
[341837160,1731250240056,-413.92900464,0.00027171,2]
[341837162,1731250240065,-500.0,0.00027171,2]
[341837164,1731250240074,-500.0,0.00027171,2]
[341837166,1731250240084,-500.0,0.00027171,2]
[341837168,1731250240093,-500.0,0.00027171,2]
[341837170,1731250240102,-500.0,0.00027171,2]
[341837171,1731250240112,-500.0,0.00027171,2]
[341837174,1731250240121,-500.0,0.00027171,2]
[341837175,1731250240133,-500.0,0.00027171,2]
[341837178,1731250240143,-500.0,0.00027171,2]
[341837180,1731250240152,-255.59121999,0.00027171,2]
[341837182,1731250240161,-500.0,0.00027171,2]
[341837184,1731250240170,-500.0,0.00027171,2]
[341837186,1731250240179,-500.0,0.00027171,2]
[341837188,1731250240188,-500.0,0.00027171,2]
[341837189,1731250240197,-500.0,0.00027171,2]
[341837192,1731250240206,-500.0,0.00027171,2]
[341837194,1731250240215,-500.0,0.00027171,2]
[341837196,1731250240225,-500.0,0.00027171,2]
[341837198,1731250240234,-500.0,0.00027171,2]
[341837200,1731250240245,-500.0,0.00027171,2]
[341837202,1731250240254,-500.0,0.00027171,2]
[341837204,1731250240264,-175.57143617,0.00027171,2]
[341837206,1731250240273,-500.0,0.00027171,2]
[341837208,1731250240282,-500.0,0.00027172,2]
[341837210,1731250240292,-513.19151259,0.00027172,2]
[341837212,1731250240302,-500.0,0.00027172,2]
[341837214,1731250240311,-500.0,0.00027172,2]
[341837216,1731250240320,-500.0,0.00027172,2]
[341837218,1731250240329,-507.08872626,0.00027172,2]
[341837220,1731250240338,-500.0,0.00027172,2]
[341837222,1731250240347,-500.0,0.00027172,2]
[341837224,1731250240356,-500.0,0.00027172,2]
[341837225,1731250240365,-500.0,0.00027172,2]
[341837228,1731250240375,-500.0,0.00027172,2]
[341837229,1731250240384,-500.0,0.00027172,2]
[341837231,1731250240393,-500.0,0.00027172,2]
[341837233,1731250240402,-942.84,0.00027172,2]
[341837235,1731250240412,-500.0,0.00027172,2]
[341837237,1731250240421,-500.0,0.00027172,2]
[341837240,1731250240430,-500.0,0.00027172,2]
[341837241,1731250240439,-500.0,0.00027172,2]
[341837243,1731250240448,-500.0,0.00027172,2]
[341837244,1731250240457,-1261.13,0.00027172,2]
[341837245,1731250240467,-1308.38,0.00027172,2]
[341837246,1731250240476,-500.0,0.00027172,2]
[341837247,1731250240485,-622.63611447,0.00027172,2]
[341837248,1731250240497,-500.0,0.00027172,2]
[341837249,1731250240506,-500.0,0.00027172,2]
[341837250,1731250240515,-500.0,0.00027172,2]
[341837251,1731250240524,-818.29,0.00027172,2]
[341837252,1731250240533,-500.0,0.00027172,2]
[341837253,1731250240542,-500.0,0.00027172,2]
[341837254,1731250240551,-559.51227185,0.00027172,2]
[341837255,1731250240560,-535.50767129,0.00027172,2]
[341837256,1731250240570,-13516.98,0.00027172,2]
[341837257,1731250240579,-500.0,0.00027172,2]
[341837258,1731250240589,-3024.3,0.00027172,2]
[341837259,1731250240598,-500.0,0.00027172,2]
[341837260,1731250240607,-500.0,0.00027172,2]
[341837261,1731250240617,-500.0,0.00027172,2]
[341837262,1731250240626,-500.0,0.00027172,2]
[341837263,1731250240635,-500.0,0.00027172,2]
[341837264,1731250240644,-28298.33,0.00027172,2]
[341837265,1731250240653,-310.30221024,0.00027172,2]
[341837266,1731250240663,-500.0,0.00027172,2]
[341837268,1731250240672,-500.0,0.00027172,2]
[341837269,1731250240681,-984.5,0.00027172,2]
[341837271,1731250240690,-500.0,0.00027172,2]
[341837273,1731250240699,-500.0,0.00027172,2]
[341837275,1731250240709,-2173.92,0.00027172,2]
[341837277,1731250240721,-500.0,0.00027172,2]
[341837279,1731250240731,-500.0,0.00027172,2]
[341837281,1731250240744,-547.48,0.00027172,2]
[341837293,1731250240854,-2830.29,0.00027172,2]
[341837295,1731250240864,-9433.18,0.00027172,2]
[341837297,1731250240873,-549.23,0.00027172,2]
[341837299,1731250240882,-510.59476644,0.00027172,2]
[341837301,1731250240892,-500.0,0.00027172,2]
[341837303,1731250240901,-511.61,0.00027172,2]
[341837305,1731250240910,-500.0,0.00027172,2]
[341837307,1731250240920,-500.0,0.00027172,2]
[341837309,1731250240929,-512.01895388,0.00027172,2]
[341837311,1731250240938,-500.0,0.00027172,2]
[341837313,1731250240946,-500.0,0.00027172,2]
[341837315,1731250240956,-9773.14,0.00027172,2]
[341837317,1731250240966,-2140.67,0.00027172,2]
[341837319,1731250240975,-500.0,0.00027172,2]
[341837321,1731250240984,-500.0,0.00027172,2]
[341837323,1731250240996,-4375.62,0.00027172,2]
[341837325,1731250241005,-174.19507419,0.00027172,2]
[341837327,1731250241014,-500.0,0.00027172,2]
[341837329,1731250241023,-500.0,0.00027172,2]
[341837331,1731250241033,-500.0,0.00027172,2]
[341837333,1731250241042,-517.2341855,0.00027172,2]
[341837335,1731250241052,-2406.81,0.00027172,2]
[341837337,1731250241062,-199.02025279,0.00027172,2]
[341837339,1731250241071,-500.0,0.00027172,2]
[341837341,1731250241081,-500.0,0.00027172,2]
[341837343,1731250241090,-200.0,0.00027172,2]
[341837345,1731250241099,-2921.81,0.00027172,2]
[341837347,1731250241108,-775.52,0.00027172,2]
[341837349,1731250241117,-500.0,0.00027172,2]
[341837351,1731250241126,-500.0,0.00027172,2]
[341837353,1731250241135,-1830.5,0.00027172,2]
[341837355,1731250241144,-586.34610552,0.00027172,2]
[341837357,1731250241154,-500.0,0.00027172,2]
[341837359,1731250241163,-500.0,0.00027172,2]
[341837361,1731250241172,-500.0,0.00027172,2]
[341837363,1731250241181,-508.43100591,0.00027172,2]
[341837365,1731250241190,-500.0,0.00027172,2]
[341837367,1731250241199,-2203.37,0.00027172,2]
[341837369,1731250241209,-500.0,0.00027172,2]
[341837371,1731250241218,-945.73,0.00027172,2]
[341837373,1731250241227,-1701.8,0.00027172,2]
[341837375,1731250241235,-500.0,0.00027172,2]
[341837376,1731250241247,-500.0,0.00027172,2]
[341837378,1731250241256,-500.0,0.00027173,2]
[341837381,1731250241265,-500.0,0.00027173,2]
[341837382,1731250241275,-500.0,0.00027173,2]
[341837384,1731250241283,-500.0,0.00027173,2]
[341837386,1731250241293,-211.65814992,0.00027173,2]
[341837388,1731250241303,-500.0,0.00027173,2]
[341837390,1731250241313,-500.0,0.00027173,2]
[341837392,1731250241322,-500.0,0.00027173,2]
[341837395,1731250241332,-500.0,0.00027173,2]
[341837397,1731250241342,-250.0,0.00027173,2]
[341837399,1731250241351,-157.61802115,0.00027173,2]
[341837400,1731250241361,-500.0,0.00027173,2]
[341837402,1731250241372,-500.0,0.00027173,2]
[341837404,1731250241381,-500.0,0.00027173,2]
[341837406,1731250241392,-575.3886209,0.00027173,2]
[341837409,1731250241401,-500.0,0.00027173,2]
[341837410,1731250241410,-323.58959545,0.00027173,2]
[341837412,1731250241419,-532.89212309,0.00027173,2]
[341837414,1731250241428,-518.0615251,0.00027173,2]
[341837416,1731250241438,-2835.62639961,0.00027241,2]
[341837418,1731250241446,-196.450426,0.000273,2]
[341837420,1731250241456,-500.0,0.00027397,2]
[341837422,1731250241465,-500.0,0.00027397,2]
[341837424,1731250241474,-500.0,0.00027397,2]
[341837426,1731250241483,-500.0,0.00027397,6]
[341837428,1731250241495,-500.0,0.00027397,10]
[341837430,1731250241504,-500.72745053,0.00027397,14]
[341837432,1731250241513,-500.0,0.00027397,2]
[341837434,1731250241522,-500.0,0.00027397,2]
[341837436,1731250241531,-500.0,0.00027397,2]
[341837438,1731250241540,-500.13715306,0.00027397,2]
[341837440,1731250241549,-500.0,0.00027397,2]
[341837442,1731250241558,-500.0,0.00027397,2]
[341837444,1731250241569,-500.0,0.00027397,2]
[341837446,1731250241578,-500.0,0.00027397,2]
[341837448,1731250241588,-500.0,0.00027397,2]
[341837450,1731250241597,-500.0,0.00027397,2]
[341837452,1731250241607,-168.88476802,0.00027397,2]
[341837454,1731250241617,-500.0,0.00027397,2]
[341837456,1731250241626,-500.0,0.00027397,2]
[341837458,1731250241636,-500.0,0.00027397,2]
[341837460,1731250241645,-500.0,0.00027397,2]
[341837462,1731250241655,-500.0,0.00027397,2]
[341837464,1731250241663,-500.0,0.00027397,2]
[341837466,1731250241672,-500.0,0.00027397,2]
[341837468,1731250241682,-500.0,0.00027397,2]
[341837470,1731250241691,-500.0,0.00027397,2]
[341837472,1731250241700,-500.0,0.00027397,2]
[341837474,1731250241710,-167.84650266,0.00027397,2]
[341837476,1731250241721,-150.112233,0.000274,14]
[341837478,1731250241731,-500.0,0.00027435,2]
[341837480,1731250241742,-9773.14,0.00027435,2]
[341837482,1731250241751,-2140.67,0.00027435,2]
[341837484,1731250241761,-541.88629894,0.00027445,2]
[341837486,1731250241770,-9773.14,0.00027445,2]
[341837488,1731250241779,-2140.67,0.00027445,2]
[341837490,1731250241789,-500.0,0.00027446,2]
[341837492,1731250241799,-500.0,0.00027446,2]
[341837494,1731250241808,-500.0,0.00027446,2]
[341837496,1731250241817,-500.0,0.00027446,2]
[341837498,1731250241827,-500.0,0.00027446,2]
[341837500,1731250241836,-500.0,0.00027446,2]
[341837502,1731250241848,-500.0,0.00027446,2]
[341837503,1731250241860,-500.0,0.00027446,2]
[341837505,1731250241871,-508.80888844,0.00027446,2]
[341837508,1731250241881,-265.546971,0.00027446,2]
[341837510,1731250241892,-500.0,0.00027446,2]
[341837511,1731250241901,-599.56962029,0.00027446,2]
[341837513,1731250241911,-942.84,0.00027446,2]
[341837515,1731250241920,-500.0,0.00027446,2]
[341837517,1731250241929,-500.0,0.00027446,2]
[341837519,1731250241939,-500.0,0.00027446,2]
[341837521,1731250241948,-500.0,0.00027446,2]
[341837523,1731250241958,-1261.13,0.00027446,2]
[341837525,1731250241967,-1308.38,0.00027446,2]
[341837527,1731250241977,-500.0,0.00027446,2]
[341837529,1731250241986,-500.0,0.00027446,2]
[341837531,1731250241997,-818.29,0.00027446,2]
[341837533,1731250242006,-500.0,0.00027446,2]
[341837535,1731250242015,-500.0,0.00027446,2]
[341837537,1731250242024,-13516.98,0.00027446,2]
[341837539,1731250242033,-3024.3,0.00027446,2]
[341837541,1731250242042,-500.0,0.00027446,2]
[341837543,1731250242051,-616.19,0.00027446,2]
[341837545,1731250242060,-500.0,0.00027446,2]
[341837547,1731250242069,-500.0,0.00027446,2]
[341837549,1731250242078,-28298.33,0.00027446,2]
[341837551,1731250242087,-500.0,0.00027446,2]
[341837553,1731250242096,-984.5,0.00027446,2]
[341837555,1731250242105,-500.0,0.00027446,2]
[341837557,1731250242114,-2173.92,0.00027446,2]
[341837559,1731250242123,-500.0,0.00027446,2]
[341837561,1731250242132,-500.0,0.00027446,2]
[341837563,1731250242141,-547.48,0.00027446,2]
[341837564,1731250242150,-2830.29,0.00027446,2]
[341837566,1731250242160,-9433.18,0.00027446,2]
[341837568,1731250242171,-549.23,0.00027446,2]
[341837570,1731250242181,-500.0,0.00027446,2]
[341837572,1731250242190,-511.61,0.00027446,2]
[341837575,1731250242200,-500.0,0.00027446,2]
[341837577,1731250242209,-500.0,0.00027446,2]
[341837579,1731250242218,-500.0,0.00027446,2]
[341837580,1731250242227,-500.0,0.00027446,2]
[341837583,1731250242237,-9773.14,0.00027446,2]
[341837585,1731250242248,-9773.14,0.00027446,2]
[341837587,1731250242257,-2140.67,0.00027446,2]
[341837588,1731250242266,-2140.67,0.00027446,2]
[341837590,1731250242275,-500.0,0.00027446,2]
[341837592,1731250242284,-4375.62,0.00027446,2]
[341837594,1731250242293,-262.02112868,0.00027446,2]
[341837596,1731250242302,-500.0,0.00027446,2]
[341837598,1731250242311,-2406.81,0.00027446,2]
[341837600,1731250242321,-500.0,0.00027446,2]
[341837602,1731250242329,-500.0,0.00027446,2]
[341837604,1731250242338,-200.0,0.00027446,2]
[341837606,1731250242347,-2921.81,0.00027446,2]
[341837608,1731250242356,-775.52,0.00027446,2]
[341837610,1731250242366,-480.71777672,0.00027446,2]
[341837612,1731250242375,-500.0,0.00027446,2]
[341837614,1731250242384,-1830.5,0.00027446,2]
[341837616,1731250242393,-566.73612131,0.00027446,2]
[341837618,1731250242402,-500.0,0.00027446,2]
[341837620,1731250242411,-374.99876,0.00027446,7]
[341837622,1731250242420,-500.0,0.00027446,2]
[341837624,1731250242429,-2203.37,0.00027446,2]
[341837626,1731250242439,-500.0,0.00027446,2]
[341837628,1731250242449,-945.73,0.00027446,2]
[341837630,1731250242460,-374.99876,0.00027446,7]
[341837632,1731250242469,-1701.8,0.00027446,2]
[341837634,1731250242479,-500.0,0.00027446,2]
[341837636,1731250242489,-500.0,0.00027446,2]
[341837638,1731250242498,-500.0,0.00027447,2]
[341837640,1731250242507,-500.0,0.00027447,2]
[341837642,1731250242517,-500.0,0.00027447,2]
[341837644,1731250242526,-500.0,0.00027447,2]
[341837646,1731250242535,-291.49998199,0.00027447,2]
[341837648,1731250242545,-500.0,0.00027447,2]
[341837650,1731250242554,-250.0,0.00027447,2]
[341837653,1731250242563,-615.96720208,0.00027447,2]
[341837655,1731250242573,-500.0,0.00027447,2]
[341837657,1731250242582,-500.0,0.00027447,2]
[341837659,1731250242591,-532.44542169,0.00027447,2]
[341837661,1731250242601,-507.47644622,0.00027473,5]
[341837663,1731250242610,-437.72467704,0.00027473,5]
[341837665,1731250242620,-500.46639605,0.00027473,5]
[341837667,1731250242629,-321.25939195,0.00027473,5]
[341837668,1731250242639,-500.0,0.00027473,5]
[341837671,1731250242648,-500.0,0.00027473,5]
[341837673,1731250242658,-500.0,0.00027473,5]
[341837676,1731250242668,-2690.59570811,0.00027496,2]
[341837677,1731250242677,-150.112233,0.000275,18]
[341837679,1731250242686,-500.0,0.00027513,5]
[341837681,1731250242696,-500.0,0.00027513,2]
[341837683,1731250242705,-500.0,0.00027513,5]
[341837685,1731250242717,-554.70390979,0.00027513,5]
[341837687,1731250242726,-500.0,0.00027513,5]
[341837689,1731250242736,-500.0,0.00027513,5]
[341837691,1731250242747,-500.0,0.00027513,2]
[341837693,1731250242758,-500.0,0.00027513,5]
[341837695,1731250242768,-500.0,0.00027565,2]
[341837697,1731250242777,-500.0,0.00027565,2]
[341837699,1731250242787,-502.89685815,0.00027573,5]
[341837712,1731250242893,-500.0,0.00027573,5]
[341837714,1731250242904,-500.0,0.00027573,5]
[341837717,1731250242914,-500.0,0.00027573,5]
[341837721,1731250242924,-374.99876,0.00027573,7]